[Event "Betsys MČR v online bleskovém šachu 2021"]
[Site "Chess.com"]
[Date "2021.04.17"]
[Round "3"]
[White "HonzaVykouk"]
[Black "JohnnyDuck64"]
[Result "1-0"]
[WhiteElo "2694"]
[BlackElo "2132"]
[TimeControl "180+1"]
[EndTime "9:27:22 PDT"]
[Termination "Uživatel HonzaVykouk zvítězil na čas"]

1. e4 {[%clk 0:03:00.9]} 1... c5 {[%clk 0:02:59.3]} 2. Nf3 {[%clk 0:02:51.4]}
2... d6 {[%clk 0:02:58.9]} 3. d4 {[%clk 0:02:51.4]} 3... cxd4 {[%clk 0:02:58.9]}
4. Nxd4 {[%clk 0:02:52.3]} 4... Nf6 {[%clk 0:02:58.6]} 5. Nc3 {[%clk 0:02:52.1]}
5... g6 {[%clk 0:02:58.1]} 6. Be3 {[%clk 0:02:51.5]} 6... Bg7 {[%clk 0:02:57.7]}
7. f3 {[%clk 0:02:51.9]} 7... a6 {[%clk 0:02:57.6]} 8. Qd2 {[%clk 0:02:51.2]}
8... Nbd7 {[%clk 0:02:57]} 9. h4 {[%clk 0:02:51]} 9... h5 {[%clk 0:02:55.7]} 10.
O-O-O {[%clk 0:02:50.6]} 10... b5 {[%clk 0:02:55.5]} 11. Bg5 {[%clk 0:02:48.9]}
11... Bb7 {[%clk 0:02:50.5]} 12. Kb1 {[%clk 0:02:47.9]} 12... Rc8 {[%clk
0:02:44.3]} 13. Be2 {[%clk 0:02:37.3]} 13... Nb6 {[%clk 0:02:14.7]} 14. a3
{[%clk 0:02:18.4]} 14... Nc4 {[%clk 0:01:59.7]} 15. Bxc4 {[%clk 0:02:15]} 15...
Rxc4 {[%clk 0:02:00.6]} 16. Nb3 {[%clk 0:02:03.7]} 16... Qc7 {[%clk 0:01:31.7]}
17. Nd5 {[%clk 0:01:21]} 17... Bxd5 {[%clk 0:01:13.2]} 18. exd5 {[%clk
0:01:21.9]} 18... O-O {[%clk 0:01:13]} 19. g4 {[%clk 0:01:06.5]} 19... hxg4
{[%clk 0:01:09.8]} 20. Na5 {[%clk 0:00:30.4]} 20... Ra4 {[%clk 0:00:44.3]} 21.
Nc6 {[%clk 0:00:29.8]} 21... gxf3 {[%clk 0:00:35.1]} 22. h5 {[%clk 0:00:26.9]}
22... Re8 {[%clk 0:00:17.5]} 23. h6 {[%clk 0:00:20.2]} 23... Bf8 {[%clk
0:00:11.6]} 24. h7+ {[%clk 0:00:20]} 24... Kh8 {[%clk 0:00:11.7]} 25. Rhe1
{[%clk 0:00:14.8]} 25... Bg7 {[%clk 0:00:09.2]} 26. Qf2 {[%clk 0:00:06.9]} 26...
Ne4 {[%clk 0:00:07.5]} 27. Qe3 {[%clk 0:00:04.6]} 27... Nxg5 {[%clk 0:00:06.8]}
28. Qxg5 {[%clk 0:00:05.5]} 28... Bf6 {[%clk 0:00:04.5]} 29. Qe3 {[%clk
0:00:02.7]} 29... Kg7 {[%clk 0:00:04.1]} 30. Qxf3 {[%clk 0:00:01.9]} 30... Rh4
{[%clk 0:00:03.1]} 31. Rh1 {[%clk 0:00:01.9]} 31... Rxh1 {[%clk 0:00:02.3]} 32.
Rxh1 {[%clk 0:00:02.8]} 32... Rh8 {[%clk 0:00:02.4]} 33. Qh3 {[%clk 0:00:02.7]}
1-0

[Event "Betsys MČR v online bleskovém šachu 2021"]
[Site "Chess.com"]
[Date "2021.04.17"]
[Round "3"]
[White "florenc1330"]
[Black "TarantAnk"]
[Result "1-0"]
[WhiteElo "2088"]
[BlackElo "1729"]
[TimeControl "180+1"]
[EndTime "9:27:22 PDT"]
[Termination "Uživatel florenc1330 zvítězil na čas"]

1. c4 {[%clk 0:02:58.7]} 1... c5 {[%clk 0:02:59.8]} 2. g3 {[%clk 0:02:58.1]}
2... d6 {[%clk 0:03:00.4]} 3. Bg2 {[%clk 0:02:58.1]} 3... Nf6 {[%clk 0:03:01]}
4. Nc3 {[%clk 0:02:57.6]} 4... g6 {[%clk 0:03:01.5]} 5. Nf3 {[%clk 0:02:57.6]}
5... Nc6 {[%clk 0:03:01.9]} 6. O-O {[%clk 0:02:57.4]} 6... Bg7 {[%clk
0:03:02.4]} 7. a3 {[%clk 0:02:57.5]} 7... O-O {[%clk 0:03:02.4]} 8. Rb1 {[%clk
0:02:57.5]} 8... Rb8 {[%clk 0:03:02.9]} 9. b4 {[%clk 0:02:57.2]} 9... Bf5 {[%clk
0:03:00.6]} 10. d3 {[%clk 0:02:56.4]} 10... cxb4 {[%clk 0:02:56.5]} 11. axb4
{[%clk 0:02:55.1]} 11... Nd7 {[%clk 0:02:54]} 12. Bd2 {[%clk 0:02:43.5]} 12...
Nde5 {[%clk 0:02:51.9]} 13. b5 {[%clk 0:02:36.8]} 13... Nxf3+ {[%clk 0:02:49.9]}
14. Bxf3 {[%clk 0:02:36.8]} 14... Nd4 {[%clk 0:02:46.4]} 15. Bg2 {[%clk
0:02:35.4]} 15... a6 {[%clk 0:02:41.3]} 16. e3 {[%clk 0:02:01.3]} 16... Bxd3
{[%clk 0:02:33.6]} 17. exd4 {[%clk 0:01:59.7]} 17... Bxb1 {[%clk 0:02:28.9]} 18.
Qxb1 {[%clk 0:01:54.8]} 18... axb5 {[%clk 0:02:21.5]} 19. Nxb5 {[%clk
0:01:53.1]} 19... Qb6 {[%clk 0:02:12.5]} 20. Qd3 {[%clk 0:01:50.5]} 20... Rfc8
{[%clk 0:02:08.1]} 21. h4 {[%clk 0:01:48.4]} 21... Ra8 {[%clk 0:02:01.7]} 22. h5
{[%clk 0:01:46.5]} 22... Ra4 {[%clk 0:01:59.9]} 23. Rc1 {[%clk 0:01:28.1]} 23...
Rca8 {[%clk 0:01:28.7]} 24. Qe4 {[%clk 0:01:20.9]} 24... Ra1 {[%clk 0:01:17.2]}
25. Kh2 {[%clk 0:01:14.6]} 25... Rxc1 {[%clk 0:01:09.6]} 26. Bxc1 {[%clk
0:01:14.6]} 26... Rc8 {[%clk 0:01:08.1]} 27. Qxe7 {[%clk 0:01:09.5]} 27... Bf8
{[%clk 0:00:58.3]} 28. Qxb7 {[%clk 0:01:03.4]} 28... Qxb7 {[%clk 0:00:55]} 29.
Bxb7 {[%clk 0:01:03.2]} 29... Rxc4 {[%clk 0:00:55.1]} 30. Bf4 {[%clk 0:01:00.8]}
30... Rb4 {[%clk 0:00:51.3]} 31. Bc6 {[%clk 0:01:00.7]} 31... Kg7 {[%clk
0:00:45.2]} 32. d5 {[%clk 0:00:59.2]} 32... gxh5 {[%clk 0:00:38.5]} 33. Nxd6
{[%clk 0:00:58.4]} 33... Rb2 {[%clk 0:00:33.6]} 34. Ne8+ {[%clk 0:00:54.7]}
34... Kg6 {[%clk 0:00:26.9]} 35. Kg2 {[%clk 0:00:52.8]} 35... Bc5 {[%clk
0:00:25.5]} 36. d6 {[%clk 0:00:43.7]} 36... Rxf2+ {[%clk 0:00:24.5]} 37. Kh3
{[%clk 0:00:43.8]} 37... Rf1 {[%clk 0:00:17.2]} 38. Be4+ {[%clk 0:00:43.3]}
38... f5 {[%clk 0:00:10.8]} 39. d7 {[%clk 0:00:42.4]} 39... Bb6 {[%clk
0:00:07.8]} 40. Bc6 {[%clk 0:00:36.4]} 40... Rd1 {[%clk 0:00:07.1]} 41. Kg2
{[%clk 0:00:30.6]} 41... Rg1+ {[%clk 0:00:06.4]} 42. Kf3 {[%clk 0:00:30]} 42...
Rd1 {[%clk 0:00:06.5]} 43. Ke2 {[%clk 0:00:30.1]} 43... Rd4 {[%clk 0:00:05.7]}
44. Be3 {[%clk 0:00:28.9]} 1-0

[Event "Betsys MČR v online bleskovém šachu 2021"]
[Site "Chess.com"]
[Date "2021.04.17"]
[Round "3"]
[White "bezzuton"]
[Black "SajdlJosef"]
[Result "1-0"]
[WhiteElo "1453"]
[BlackElo "1860"]
[TimeControl "180+1"]
[EndTime "9:27:22 PDT"]
[Termination "Uživatel bezzuton zvítězil na čas"]

1. d4 {[%clk 0:02:55.7]} 1... d5 {[%clk 0:02:58.2]} 2. Bf4 {[%clk 0:02:54]} 2...
c6 {[%clk 0:02:56.7]} 3. e3 {[%clk 0:02:50.9]} 3... Nf6 {[%clk 0:02:56.2]} 4. c3
{[%clk 0:02:46.8]} 4... Bf5 {[%clk 0:02:55.3]} 5. f3 {[%clk 0:02:39.6]} 5... e6
{[%clk 0:02:46.5]} 6. h4 {[%clk 0:02:37.1]} 6... Bd6 {[%clk 0:02:41.9]} 7. Bxd6
{[%clk 0:02:30.1]} 7... Qxd6 {[%clk 0:02:40.4]} 8. Kf2 {[%clk 0:02:30]} 8...
Nbd7 {[%clk 0:02:24.7]} 9. Nd2 {[%clk 0:02:27.8]} 9... h6 {[%clk 0:02:17.5]} 10.
g4 {[%clk 0:02:24.1]} 10... Bg6 {[%clk 0:02:08.5]} 11. b4 {[%clk 0:02:08.8]}
11... e5 {[%clk 0:02:03.2]} 12. Qb3 {[%clk 0:01:52.2]} 12... exd4 {[%clk
0:01:54.3]} 13. cxd4 {[%clk 0:01:46.3]} 13... O-O {[%clk 0:01:40.1]} 14. Nh3
{[%clk 0:01:40.3]} 14... Rfe8 {[%clk 0:01:32.8]} 15. Nf4 {[%clk 0:01:32]} 15...
Bh7 {[%clk 0:01:29.7]} 16. Bd3 {[%clk 0:01:29.2]} 16... Re7 {[%clk 0:01:23.5]}
17. Bxh7+ {[%clk 0:01:25.6]} 17... Nxh7 {[%clk 0:01:21.5]} 18. Rag1 {[%clk
0:01:17.7]} 18... Rae8 {[%clk 0:01:17.9]} 19. Nf1 {[%clk 0:01:16.7]} 19... Rxe3
{[%clk 0:01:08.7]} 20. Nxe3 {[%clk 0:01:05.8]} 20... Qxf4 {[%clk 0:01:07.8]} 21.
Rd1 {[%clk 0:00:53]} 21... Nhf6 {[%clk 0:01:00.5]} 22. Ke2 {[%clk 0:00:39.4]}
22... Nb6 {[%clk 0:00:44]} 23. Rd3 {[%clk 0:00:19.1]} 23... Nc4 {[%clk 0:00:37]}
24. a4 {[%clk 0:00:13.2]} 24... Nxe3 {[%clk 0:00:16.8]} 25. Rxe3 {[%clk
0:00:11.6]} 25... Qxd4 {[%clk 0:00:14.9]} 26. Rxe8+ {[%clk 0:00:09.4]} 26...
Nxe8 {[%clk 0:00:13.9]} 27. Rd1 {[%clk 0:00:09]} 27... Qe5+ {[%clk 0:00:11]} 28.
Qe3 {[%clk 0:00:08.8]} 28... f6 {[%clk 0:00:06.5]} 29. Qxe5 {[%clk 0:00:07.6]}
29... fxe5 {[%clk 0:00:05.5]} 30. Ke3 {[%clk 0:00:07.8]} 30... Nd6 {[%clk
0:00:05.1]} 31. b5 {[%clk 0:00:06.5]} 31... Kf7 {[%clk 0:00:04.1]} 32. bxc6
{[%clk 0:00:05.7]} 32... bxc6 {[%clk 0:00:03.1]} 33. Rc1 {[%clk 0:00:05.8]} 1-0

[Event "Betsys MČR v online bleskovém šachu 2021"]
[Site "Chess.com"]
[Date "2021.04.17"]
[Round "3"]
[White "tryskomys"]
[Black "Listro33"]
[Result "1-0"]
[WhiteElo "1476"]
[BlackElo "1872"]
[TimeControl "180+1"]
[EndTime "9:27:25 PDT"]
[Termination "Uživatel tryskomys zvítězil na čas"]

1. e4 {[%clk 0:03:00.9]} 1... c6 {[%clk 0:02:59.8]} 2. d4 {[%clk 0:02:57.5]}
2... d5 {[%clk 0:03:00.4]} 3. exd5 {[%clk 0:02:53.8]} 3... cxd5 {[%clk
0:03:01.3]} 4. c4 {[%clk 0:02:53.2]} 4... Nf6 {[%clk 0:02:58.6]} 5. Nc3 {[%clk
0:02:52.9]} 5... Nc6 {[%clk 0:02:55.6]} 6. Nf3 {[%clk 0:02:51.4]} 6... e6 {[%clk
0:02:54.8]} 7. a3 {[%clk 0:02:47.2]} 7... Be7 {[%clk 0:02:54.2]} 8. Bd3 {[%clk
0:02:42.9]} 8... O-O {[%clk 0:02:53.3]} 9. O-O {[%clk 0:02:41.6]} 9... b6 {[%clk
0:02:52.8]} 10. cxd5 {[%clk 0:02:37.2]} 10... Nxd5 {[%clk 0:02:49.8]} 11. Re1
{[%clk 0:02:36.3]} 11... Bb7 {[%clk 0:02:42.1]} 12. Bc2 {[%clk 0:02:35.7]} 12...
g6 {[%clk 0:02:20.9]} 13. Bh6 {[%clk 0:02:32.4]} 13... Re8 {[%clk 0:02:20.3]}
14. Bb3 {[%clk 0:02:26.9]} 14... Na5 {[%clk 0:02:07.7]} 15. Ba2 {[%clk
0:02:24.1]} 15... Nxc3 {[%clk 0:02:06.6]} 16. bxc3 {[%clk 0:02:23]} 16... Bd5
{[%clk 0:02:06.3]} 17. Qd3 {[%clk 0:02:06.5]} 17... Bf6 {[%clk 0:02:01]} 18. Ne5
{[%clk 0:01:59.2]} 18... Rc8 {[%clk 0:01:54.1]} 19. Bf4 {[%clk 0:01:36.4]} 19...
Nc6 {[%clk 0:01:42.3]} 20. c4 {[%clk 0:01:29.3]} 20... Nxe5 {[%clk 0:01:08.7]}
21. dxe5 {[%clk 0:01:27.4]} 21... Bb7 {[%clk 0:01:06.6]} 22. Qg3 {[%clk
0:01:15.7]} 22... Bg7 {[%clk 0:01:00.4]} 23. Rad1 {[%clk 0:01:14.2]} 23... Qc7
{[%clk 0:00:56.5]} 24. h4 {[%clk 0:01:12]} 24... Red8 {[%clk 0:00:42.5]} 25. h5
{[%clk 0:01:09.2]} 25... Rxd1 {[%clk 0:00:41.7]} 26. Rxd1 {[%clk 0:01:08.4]}
26... Rd8 {[%clk 0:00:42]} 27. Re1 {[%clk 0:01:00.3]} 27... Qd7 {[%clk
0:00:21.2]} 28. hxg6 {[%clk 0:00:58.3]} 28... hxg6 {[%clk 0:00:20.6]} 29. Bb1
{[%clk 0:00:56.4]} 29... Qd4 {[%clk 0:00:14.3]} 30. Bg5 {[%clk 0:00:49.5]} 30...
Rc8 {[%clk 0:00:09.6]} 31. Bf6 {[%clk 0:00:37.7]} 31... Rxc4 {[%clk 0:00:07.3]}
32. Bxg6 {[%clk 0:00:32.7]} 32... Qg4 {[%clk 0:00:06.7]} 33. Qxg4 {[%clk
0:00:30.5]} 33... Rxg4 {[%clk 0:00:05.6]} 34. Bh5 {[%clk 0:00:22.4]} 34... Rxg2+
{[%clk 0:00:04.9]} 35. Kf1 {[%clk 0:00:22.6]} 35... Rh2 {[%clk 0:00:04.5]} 36.
Bg4 {[%clk 0:00:20.1]} 36... Rh1+ {[%clk 0:00:02.2]} 37. Ke2 {[%clk 0:00:20]}
37... Rxe1+ {[%clk 0:00:01.4]} 38. Kxe1 {[%clk 0:00:19.9]} 38... Bxf6 {[%clk
0:00:01.7]} 39. exf6 {[%clk 0:00:19.1]} 39... Bd5 {[%clk 0:00:01.6]} 40. Kd2
{[%clk 0:00:18.3]} 40... Kh7 {[%clk 0:00:01.6]} 41. Bh5 {[%clk 0:00:16.9]} 1-0

[Event "Betsys MČR v online bleskovém šachu 2021"]
[Site "Chess.com"]
[Date "2021.04.17"]
[Round "3"]
[White "FutureFideMasseur"]
[Black "Dejfos"]
[Result "1-0"]
[WhiteElo "2433"]
[BlackElo "1827"]
[TimeControl "180+1"]
[EndTime "9:27:26 PDT"]
[Termination "Uživatel FutureFideMasseur zvítězil na čas"]

1. d4 {[%clk 0:03:00.9]} 1... Nf6 {[%clk 0:02:57.4]} 2. c4 {[%clk 0:03:01.1]}
2... c5 {[%clk 0:02:56.9]} 3. d5 {[%clk 0:03:00.9]} 3... b5 {[%clk 0:02:56.5]}
4. Qc2 {[%clk 0:02:59.7]} 4... bxc4 {[%clk 0:02:43.9]} 5. e4 {[%clk 0:02:59.2]}
5... d6 {[%clk 0:02:43.6]} 6. Bxc4 {[%clk 0:02:56.9]} 6... g6 {[%clk 0:02:42.9]}
7. Nc3 {[%clk 0:02:55.9]} 7... Bg7 {[%clk 0:02:43.3]} 8. Nf3 {[%clk 0:02:53.7]}
8... O-O {[%clk 0:02:43.8]} 9. O-O {[%clk 0:02:53.7]} 9... Ba6 {[%clk
0:02:37.2]} 10. Bxa6 {[%clk 0:02:50.2]} 10... Nxa6 {[%clk 0:02:36.1]} 11. Qe2
{[%clk 0:02:50.7]} 11... Nc7 {[%clk 0:02:30.8]} 12. Bf4 {[%clk 0:02:42]} 12...
Nh5 {[%clk 0:02:12.9]} 13. Bg5 {[%clk 0:02:40.5]} 13... h6 {[%clk 0:02:10.4]}
14. Bd2 {[%clk 0:02:36.5]} 14... Nf6 {[%clk 0:02:07.5]} 15. h3 {[%clk
0:02:32.4]} 15... Kh7 {[%clk 0:02:02.2]} 16. Rfe1 {[%clk 0:02:28.6]} 16... e6
{[%clk 0:01:49.9]} 17. dxe6 {[%clk 0:02:24.3]} 17... Nxe6 {[%clk 0:01:36.7]} 18.
Be3 {[%clk 0:02:24.4]} 18... Re8 {[%clk 0:01:28.1]} 19. Rad1 {[%clk 0:02:21.8]}
19... Qe7 {[%clk 0:01:24.9]} 20. Qa6 {[%clk 0:02:10.1]} 20... Rad8 {[%clk
0:01:18.8]} 21. Nd5 {[%clk 0:01:54.4]} 21... Nxd5 {[%clk 0:01:17.9]} 22. exd5
{[%clk 0:01:55.3]} 22... Nc7 {[%clk 0:01:09.4]} 23. Qc6 {[%clk 0:01:43.8]} 23...
Qd7 {[%clk 0:00:59.4]} 24. b3 {[%clk 0:01:36.6]} 24... Nb5 {[%clk 0:00:55.4]}
25. Bf4 {[%clk 0:01:23.6]} 25... Nc3 {[%clk 0:00:48]} 26. Rxe8 {[%clk
0:01:02.9]} 26... Qxe8 {[%clk 0:00:38.4]} 27. Re1 {[%clk 0:00:52.4]} 27... Ne2+
{[%clk 0:00:29.8]} 28. Rxe2 {[%clk 0:00:33.3]} 28... Qxe2 {[%clk 0:00:28.8]} 29.
Bxd6 {[%clk 0:00:32.7]} 29... Qd1+ {[%clk 0:00:18.6]} 30. Kh2 {[%clk 0:00:30.6]}
30... Qd4 {[%clk 0:00:17.6]} 31. Nxd4 {[%clk 0:00:29.8]} 31... cxd4 {[%clk
0:00:16.3]} 32. Bf4 {[%clk 0:00:24.5]} 32... g5 {[%clk 0:00:15.3]} 33. Bg3
{[%clk 0:00:20.9]} 33... d3 {[%clk 0:00:15]} 34. d6 {[%clk 0:00:20.8]} 34... d2
{[%clk 0:00:14.5]} 35. Qc2+ {[%clk 0:00:20.9]} 35... Kh8 {[%clk 0:00:12.3]} 36.
Qxd2 {[%clk 0:00:21.3]} 36... Rd7 {[%clk 0:00:12.2]} 37. Qd5 {[%clk 0:00:21.3]}
37... Kg8 {[%clk 0:00:12.2]} 38. Qc6 {[%clk 0:00:20.3]} 38... Rd8 {[%clk
0:00:12.3]} 39. d7 {[%clk 0:00:20.4]} 39... Bf6 {[%clk 0:00:12.5]} 40. Bc7
{[%clk 0:00:19.8]} 40... Be5+ {[%clk 0:00:07.1]} 41. Bxe5 {[%clk 0:00:19.3]} 1-0

[Event "Betsys MČR v online bleskovém šachu 2021"]
[Site "Chess.com"]
[Date "2021.04.17"]
[Round "3"]
[White "EXTREME_STRATEGY007"]
[Black "Honza_13"]
[Result "0-1"]
[WhiteElo "1134"]
[BlackElo "1858"]
[TimeControl "180+1"]
[EndTime "9:27:27 PDT"]
[Termination "Uživatel Honza_13 zvítězil matem"]

1. e4 {[%clk 0:02:05]} 1... c5 {[%clk 0:02:59.2]} 2. Nf3 {[%clk 0:02:03]} 2...
Nc6 {[%clk 0:02:59]} 3. d4 {[%clk 0:02:02.2]} 3... cxd4 {[%clk 0:02:58.9]} 4.
Nxd4 {[%clk 0:01:58.7]} 4... e5 {[%clk 0:02:58.8]} 5. Nb5 {[%clk 0:01:53.1]}
5... d6 {[%clk 0:02:57.6]} 6. N1c3 {[%clk 0:01:50.3]} 6... a6 {[%clk 0:02:57.2]}
7. Na3 {[%clk 0:01:49.7]} 7... Be7 {[%clk 0:02:57.3]} 8. Be3 {[%clk 0:01:42.3]}
8... Nf6 {[%clk 0:02:54.3]} 9. Bg5 {[%clk 0:01:24.6]} 9... O-O {[%clk
0:02:45.9]} 10. Bxf6 {[%clk 0:01:18.8]} 10... Bxf6 {[%clk 0:02:44.4]} 11. Nd5
{[%clk 0:01:17.5]} 11... Be6 {[%clk 0:02:26.7]} 12. c4 {[%clk 0:01:12.5]} 12...
Bg5 {[%clk 0:02:17]} 13. Bd3 {[%clk 0:01:01.5]} 13... Qa5+ {[%clk 0:02:14.2]}
14. Nc3 {[%clk 0:00:58.3]} 14... Nd4 {[%clk 0:02:07.8]} 15. O-O {[%clk
0:00:54.6]} 15... Rfc8 {[%clk 0:01:55.3]} 16. Nd5 {[%clk 0:00:51.5]} 16... Qd8
{[%clk 0:01:24.3]} 17. Nc2 {[%clk 0:00:47.9]} 17... Nxc2 {[%clk 0:01:13.4]} 18.
Qxc2 {[%clk 0:00:47]} 18... b5 {[%clk 0:01:11.7]} 19. b3 {[%clk 0:00:44.7]}
19... f5 {[%clk 0:00:52.5]} 20. f3 {[%clk 0:00:40.6]} 20... Bxd5 {[%clk
0:00:45.1]} 21. exd5 {[%clk 0:00:37.6]} 21... Qb6+ {[%clk 0:00:42.4]} 22. Kh1
{[%clk 0:00:36.6]} 22... Rf8 {[%clk 0:00:41.6]} 23. Bxf5 {[%clk 0:00:35.3]}
23... Rf6 {[%clk 0:00:32.7]} 24. Be6+ {[%clk 0:00:33.7]} 24... Kh8 {[%clk
0:00:31.2]} 25. cxb5 {[%clk 0:00:26.5]} 25... Raf8 {[%clk 0:00:14.2]} 26. bxa6
{[%clk 0:00:24.4]} 26... Qxa6 {[%clk 0:00:13.1]} 27. Rad1 {[%clk 0:00:18.4]}
27... Bf4 {[%clk 0:00:12]} 28. g3 {[%clk 0:00:16.6]} 28... Be3 {[%clk
0:00:08.4]} 29. Kg2 {[%clk 0:00:14.9]} 29... Bd4 {[%clk 0:00:08]} 30. Qd3 {[%clk
0:00:12.9]} 30... Qxa2+ {[%clk 0:00:07.1]} 31. Rd2 {[%clk 0:00:12.5]} 31... Qa5
{[%clk 0:00:07.1]} 32. Rb1 {[%clk 0:00:10.1]} 32... Rxf3 {[%clk 0:00:06]} 33.
Qxf3 {[%clk 0:00:09.1]} 33... Qxd2+ {[%clk 0:00:05.4]} 34. Kh1 {[%clk 0:00:04]}
34... Rxf3 {[%clk 0:00:05.2]} 35. Ra1 {[%clk 0:00:01.8]} 35... Rf8 {[%clk
0:00:05.5]} 36. Ra7 {[%clk 0:00:01.7]} 36... Qe3 {[%clk 0:00:04.4]} 37. Ra8
{[%clk 0:00:01.2]} 37... Qf3# {[%clk 0:00:04]} 0-1

[Event "Betsys MČR v online bleskovém šachu 2021"]
[Site "Chess.com"]
[Date "2021.04.17"]
[Round "3"]
[White "Soural_J"]
[Black "Diamantidis_13"]
[Result "0-1"]
[WhiteElo "2163"]
[BlackElo "2444"]
[TimeControl "180+1"]
[EndTime "9:27:28 PDT"]
[Termination "Uživatel Diamantidis_13 zvítězil na čas"]

1. Nf3 {[%clk 0:03:00.9]} 1... Nf6 {[%clk 0:02:59.1]} 2. c4 {[%clk 0:03:00.5]}
2... e6 {[%clk 0:02:58.3]} 3. g3 {[%clk 0:02:59.5]} 3... a6 {[%clk 0:02:58.7]}
4. Nc3 {[%clk 0:02:58.5]} 4... d5 {[%clk 0:02:58.5]} 5. cxd5 {[%clk 0:02:55.1]}
5... exd5 {[%clk 0:02:58.4]} 6. d4 {[%clk 0:02:55.5]} 6... Be7 {[%clk
0:02:56.5]} 7. Bg2 {[%clk 0:02:54.8]} 7... O-O {[%clk 0:02:57.1]} 8. O-O {[%clk
0:02:54.8]} 8... Re8 {[%clk 0:02:57.7]} 9. Bg5 {[%clk 0:02:49.2]} 9... c6 {[%clk
0:02:57.3]} 10. Bxf6 {[%clk 0:02:29.3]} 10... Bxf6 {[%clk 0:02:56.8]} 11. e3
{[%clk 0:02:29.7]} 11... a5 {[%clk 0:02:51.6]} 12. a3 {[%clk 0:02:28.4]} 12...
Qe7 {[%clk 0:02:15.9]} 13. Rb1 {[%clk 0:02:10]} 13... Bf5 {[%clk 0:02:15.3]} 14.
Rc1 {[%clk 0:02:08.1]} 14... Na6 {[%clk 0:02:14.4]} 15. Na4 {[%clk 0:02:01.4]}
15... g6 {[%clk 0:01:59]} 16. Qd2 {[%clk 0:01:59.9]} 16... Nc7 {[%clk
0:01:37.4]} 17. Nc5 {[%clk 0:01:54.8]} 17... Ne6 {[%clk 0:01:37]} 18. b4 {[%clk
0:01:48.1]} 18... axb4 {[%clk 0:01:35.5]} 19. axb4 {[%clk 0:01:46.9]} 19... h5
{[%clk 0:01:23.2]} 20. h4 {[%clk 0:01:12.9]} 20... Nxc5 {[%clk 0:01:15.3]} 21.
Rxc5 {[%clk 0:01:05.4]} 21... Bd7 {[%clk 0:00:51.7]} 22. b5 {[%clk 0:00:51]}
22... cxb5 {[%clk 0:00:50.3]} 23. Rxd5 {[%clk 0:00:49]} 23... Bc6 {[%clk
0:00:50.6]} 24. Rc5 {[%clk 0:00:46.5]} 24... Rad8 {[%clk 0:00:45.4]} 25. Rfc1
{[%clk 0:00:44]} 25... Qf8 {[%clk 0:00:24]} 26. Ne1 {[%clk 0:00:22.4]} 26...
Bxg2 {[%clk 0:00:18.8]} 27. Nxg2 {[%clk 0:00:21.9]} 27... b4 {[%clk 0:00:19.4]}
28. Rb5 {[%clk 0:00:15.6]} 28... Be7 {[%clk 0:00:17.6]} 29. Rxb7 {[%clk
0:00:14.7]} 29... Bd6 {[%clk 0:00:18]} 30. Qa2 {[%clk 0:00:09.3]} 30... Re7
{[%clk 0:00:17.5]} 31. Rxe7 {[%clk 0:00:08.1]} 31... Qxe7 {[%clk 0:00:18.4]} 32.
Nf4 {[%clk 0:00:06.1]} 32... Bxf4 {[%clk 0:00:18]} 33. exf4 {[%clk 0:00:05.5]}
33... Rxd4 {[%clk 0:00:16.6]} 34. Qa8+ {[%clk 0:00:05.3]} 34... Qd8 {[%clk
0:00:13.2]} 35. Rc8 {[%clk 0:00:01.9]} 35... Rd1+ {[%clk 0:00:11.3]} 36. Kg2
{[%clk 0:00:02.3]} 36... Qxc8 {[%clk 0:00:12.2]} 37. Qxc8+ {[%clk 0:00:02]}
37... Kg7 {[%clk 0:00:13.1]} 38. Qb7 {[%clk 0:00:02]} 38... Rd4 {[%clk
0:00:12.7]} 39. Qb6 {[%clk 0:00:01.5]} 39... Rc4 {[%clk 0:00:11.5]} 0-1

[Event "Betsys MČR v online bleskovém šachu 2021"]
[Site "Chess.com"]
[Date "2021.04.17"]
[Round "3"]
[White "matej-c"]
[Black "Hanicka1517"]
[Result "0-1"]
[WhiteElo "1971"]
[BlackElo "1623"]
[TimeControl "180+1"]
[EndTime "9:27:29 PDT"]
[Termination "Uživatel Hanicka1517 zvítězil na čas"]

1. d4 {[%clk 0:03:00.9]} 1... Nf6 {[%clk 0:02:59.9]} 2. c4 {[%clk 0:02:59.4]}
2... c5 {[%clk 0:03:00.1]} 3. d5 {[%clk 0:02:59.3]} 3... b5 {[%clk 0:03:00.4]}
4. cxb5 {[%clk 0:03:00.2]} 4... a6 {[%clk 0:03:00.7]} 5. b6 {[%clk 0:03:00.7]}
5... e6 {[%clk 0:02:51.3]} 6. Nc3 {[%clk 0:02:57.7]} 6... Bb7 {[%clk 0:02:44.3]}
7. e4 {[%clk 0:02:55.2]} 7... Qxb6 {[%clk 0:02:26.1]} 8. a4 {[%clk 0:02:51.5]}
8... Be7 {[%clk 0:02:15]} 9. a5 {[%clk 0:02:51.2]} 9... Qd8 {[%clk 0:02:12.2]}
10. Bc4 {[%clk 0:02:30.6]} 10... O-O {[%clk 0:02:09.4]} 11. Qb3 {[%clk 0:02:26]}
11... exd5 {[%clk 0:02:03]} 12. exd5 {[%clk 0:02:22.7]} 12... Qc7 {[%clk
0:01:56]} 13. Nf3 {[%clk 0:02:11]} 13... d6 {[%clk 0:01:51.9]} 14. O-O {[%clk
0:02:00]} 14... Nbd7 {[%clk 0:01:52]} 15. Re1 {[%clk 0:02:00.1]} 15... Rfe8
{[%clk 0:01:49.4]} 16. h3 {[%clk 0:01:50.5]} 16... Rab8 {[%clk 0:01:49.2]} 17.
Qc2 {[%clk 0:01:46.1]} 17... Ne5 {[%clk 0:01:29.7]} 18. Nxe5 {[%clk 0:01:28.3]}
18... dxe5 {[%clk 0:01:30.6]} 19. b3 {[%clk 0:01:07.8]} 19... Rbd8 {[%clk
0:01:29.1]} 20. Rd1 {[%clk 0:01:02.2]} 20... Bd6 {[%clk 0:01:23]} 21. Bg5 {[%clk
0:00:57.1]} 21... Be7 {[%clk 0:01:21.4]} 22. Be3 {[%clk 0:00:50.7]} 22... Bd6
{[%clk 0:01:07.6]} 23. g4 {[%clk 0:00:41.1]} 23... Qd7 {[%clk 0:01:01.2]} 24.
Bd3 {[%clk 0:00:36.6]} 24... Nxg4 {[%clk 0:00:55]} 25. Bf5 {[%clk 0:00:34.7]}
25... Nxe3 {[%clk 0:00:52.6]} 26. fxe3 {[%clk 0:00:33.2]} 26... Qe7 {[%clk
0:00:49.9]} 27. Bxh7+ {[%clk 0:00:28.5]} 27... Kh8 {[%clk 0:00:49.7]} 28. Bf5
{[%clk 0:00:27.3]} 28... Qg5+ {[%clk 0:00:48.4]} 29. Kh2 {[%clk 0:00:23.6]}
29... e4+ {[%clk 0:00:47.6]} 30. Kh1 {[%clk 0:00:18.1]} 30... Qxf5 {[%clk
0:00:46.3]} 31. Qg2 {[%clk 0:00:18]} 31... Qg6 {[%clk 0:00:41.2]} 32. Qf2 {[%clk
0:00:16.5]} 32... Qg3 {[%clk 0:00:35.9]} 33. Qxg3 {[%clk 0:00:14.3]} 33... Bxg3
{[%clk 0:00:36.1]} 34. Rf1 {[%clk 0:00:13.2]} 34... f6 {[%clk 0:00:31.3]} 35.
Rad1 {[%clk 0:00:12.5]} 35... Re5 {[%clk 0:00:24.3]} 36. Kg2 {[%clk 0:00:12.1]}
36... Bh4 {[%clk 0:00:22.8]} 37. Rf4 {[%clk 0:00:08.9]} 37... Bg5 {[%clk
0:00:22]} 38. Rg4 {[%clk 0:00:02.9]} 38... Bxe3 {[%clk 0:00:20.2]} 39. d6 {[%clk
0:00:02.8]} 39... Bd4 {[%clk 0:00:18]} 40. Ne2 {[%clk 0:00:02.3]} 40... Rxd6
{[%clk 0:00:17]} 41. Nf4 {[%clk 0:00:01.7]} 41... Rg5 {[%clk 0:00:16.3]} 0-1